fUST/lending_fUST_20250430
["ID","MTS","AMOUNT","RATE_DAILY","PERIOD"]
[359362010,1745950256807,-489.86808682,0.00030519,2]
[359362011,1745950256819,-400.0,0.00030519,2]
[359362012,1745950256828,-400.0,0.00030519,2]
[359362013,1745950256838,-400.0,0.00030519,2]
[359362014,1745950256847,-373.59881721,0.00030519,2]
[359362015,1745950256860,-200.0,0.00030519,2]
[359362016,1745950256870,-413.51,0.00030519,2]
[359362017,1745950256880,-400.0,0.00030519,2]
[359362018,1745950256889,-1316.67,0.00030519,2]
[359362019,1745950256900,-400.0,0.00030519,2]
[359362020,1745950256911,-658.51,0.00030519,2]
[359362021,1745950256920,-278.7933917,0.00030519,2]
[359362022,1745950256932,-450.0,0.00030519,2]
[359362023,1745950256942,-449.83,0.00030519,2]
[359362024,1745950256952,-400.0,0.00030519,2]
[359362025,1745950256962,-151.0,0.00030519,7]
[359362026,1745950256971,-151.0,0.00030519,7]
[359362027,1745950256981,-151.0,0.00030519,7]
[359362028,1745950256994,-200.0,0.00030543,2]
[359362029,1745950257004,-200.0,0.00030543,2]
[359362030,1745950257014,-200.0,0.00030543,2]
[359362031,1745950257024,-200.0,0.00030543,2]
[359362032,1745950257033,-413.91,0.00030543,2]
[359362033,1745950257043,-500.0,0.00030573,5]
[359362034,1745950257052,-12589.54207618,0.00030652,2]
[359362035,1745950257062,-160.0,0.00030652,2]
[359362036,1745950257073,-160.0,0.00030652,2]
[359362037,1745950257083,-160.0,0.00030652,2]
[359362038,1745950257093,-160.0,0.00030652,2]
[359362039,1745950257102,-160.0,0.00030652,2]
[359362040,1745950257113,-840.73483787,0.00030652,2]
[359362041,1745950257123,-400.0,0.0003075,2]
[359362042,1745950257132,-400.0,0.0003075,2]
[359362043,1745950257142,-300.0,0.0003075,2]
[359362044,1745950257152,-400.0,0.0003075,2]
[359362045,1745950257162,-400.0,0.0003075,2]
[359362046,1745950257172,-400.0,0.0003075,2]
[359362047,1745950257181,-400.0,0.00030751,2]
[359362048,1745950257191,-385.85432287,0.00030751,2]
[359362049,1745950257200,-2129.67,0.00030751,2]
[359362050,1745950257210,-841.35,0.00030751,2]
[359362051,1745950257221,-597.93,0.00030751,2]
[359362052,1745950257231,-4477.77,0.00030751,2]
[359362053,1745950257242,-400.0,0.00030751,2]
[359362054,1745950257252,-504.44541741,0.00030751,2]
[359362055,1745950257262,-400.0,0.00030751,2]
[359362056,1745950257271,-4481.88,0.00030751,2]
[359362057,1745950257281,-1016.27,0.00030751,2]
[359362058,1745950257291,-1557.18,0.00030751,2]
[359362059,1745950257301,-6821.26,0.00030751,2]
[359362060,1745950257311,-5218.28,0.00030751,2]
[359362061,1745950257322,-2301.75,0.00030751,2]
[359362062,1745950257331,-499.69,0.00030751,2]
[359362063,1745950257343,-2340.36,0.00030751,2]
[359362064,1745950257353,-400.0,0.00030751,2]
[359362065,1745950257362,-4344.48,0.00030751,2]
[359362066,1745950257372,-735.44,0.00030771,2]
[359362067,1745950257382,-2027.24,0.00030771,2]
[359362068,1745950257392,-400.0,0.00030771,2]
[359362069,1745950257403,-400.0,0.00030771,2]
[359362070,1745950257412,-448.72,0.00030771,2]
[359362071,1745950257423,-796.85,0.00030771,2]
[359362072,1745950257433,-753.17,0.00030771,2]
[359362073,1745950257444,-2644.55,0.00030771,2]
[359362074,1745950257455,-977.43,0.00030771,2]
[359362075,1745950257465,-400.0,0.00030771,2]
[359362076,1745950257476,-2032.37,0.00030771,2]
[359362077,1745950257488,-400.0,0.00030771,2]
[359362078,1745950257498,-606.65,0.00030771,2]
[359362079,1745950257508,-2282.85,0.00030771,2]
[359362080,1745950257519,-2537.29,0.00030771,2]
[359362081,1745950257532,-502.89,0.00030771,2]
[359362082,1745950257543,-400.0,0.00030771,2]
[359362083,1745950257558,-400.0,0.00030771,2]
[359362084,1745950257569,-400.0,0.00030771,2]
[359362085,1745950257579,-665.54,0.00030771,2]
[359362086,1745950257588,-499.27726508,0.00030771,2]
[359362087,1745950257599,-2388.42,0.00030771,2]
[359362088,1745950257608,-1859.74,0.00030771,2]
[359362089,1745950257618,-2718.43,0.00030771,2]
[359362090,1745950257628,-502.81,0.00030771,2]
[359362091,1745950257638,-500.0,0.00030773,5]
[359362092,1745950257647,-150.0,0.00030773,5]
[359362093,1745950257657,-400.0,0.00030783,2]
[359362094,1745950257666,-400.0,0.00030783,2]
[359362095,1745950257676,-300.0,0.00030783,2]
[359362096,1745950257685,-400.0,0.00030783,2]
[359362097,1745950257695,-200.0,0.00030783,2]
[359362098,1745950257704,-859.28,0.00030783,2]
[359362099,1745950257713,-400.0,0.00030783,2]
[359362100,1745950257723,-400.0,0.00030783,2]
[359362101,1745950257733,-200.0,0.00030783,2]
[359362102,1745950257743,-510.13,0.00030783,2]
[359362103,1745950257753,-783.69,0.00030783,2]
[359362104,1745950257762,-515.96,0.00030783,2]
[359362105,1745950257772,-400.0,0.00030783,2]
[359362106,1745950257781,-239.96,0.00030783,2]
[359362107,1745950257791,-836.06,0.00030783,2]
[359362108,1745950257801,-890.21,0.00030783,2]
[359362109,1745950257811,-400.0,0.00030783,2]
[359362110,1745950257822,-448.01,0.00030783,2]
[359362111,1745950257832,-469.6,0.00030783,2]
[359362112,1745950257841,-855.39,0.00030783,2]
[359362113,1745950257851,-400.0,0.00030783,2]
[359362114,1745950257862,-400.0,0.00030783,2]
[359362115,1745950257872,-537.48,0.00030783,2]
[359362116,1745950257882,-423.88,0.00030783,2]
[359362117,1745950257892,-500.96,0.00030783,2]
[359362118,1745950257905,-510.86,0.00030783,2]
[359362119,1745950257915,-400.0,0.00030783,2]
[359362120,1745950257925,-1044.99,0.00030783,2]
[359362121,1745950257935,-400.0,0.00030783,2]
[359362122,1745950257945,-400.0,0.00030783,2]
[359362123,1745950257955,-863.9,0.00030783,2]
[359362124,1745950257964,-166.86,0.00030783,2]
[359362125,1745950257974,-936.0,0.00030783,2]
[359362126,1745950257984,-489.11,0.00030783,2]
[359362127,1745950257994,-928.32,0.00030783,2]
[359362128,1745950258004,-426.15,0.00030783,2]
[359362129,1745950258014,-1739.64,0.00030783,2]
[359362130,1745950258024,-1599.63,0.00030783,2]
[359362131,1745950258033,-450.72,0.00030783,2]
[359362132,1745950258043,-669.77,0.00030783,2]
[359362133,1745950258054,-400.0,0.00030783,2]
[359362134,1745950258064,-400.0,0.00030783,2]
[359362135,1745950258074,-400.0,0.00030783,2]
[359362136,1745950258085,-400.0,0.00030783,2]
[359362137,1745950258095,-1012.25,0.00030783,2]
[359362138,1745950258105,-1114.07,0.00030783,2]
[359362139,1745950258115,-400.0,0.00030783,2]
[359362140,1745950258127,-565.43,0.00030783,2]
[359362141,1745950258138,-792.61,0.00030783,2]
[359362142,1745950258147,-400.0,0.00030783,2]
[359362143,1745950258156,-400.0,0.00030783,2]
[359362144,1745950258166,-400.0,0.00030783,2]
[359362145,1745950258329,-618.32,0.00030783,2]
[359362146,1745950258340,-442.39,0.00030783,2]
[359362147,1745950258349,-400.0,0.00030783,2]
[359362148,1745950258359,-193.67,0.00030783,2]
[359362149,1745950258369,-400.0,0.00030783,2]
[359362150,1745950258378,-671.04,0.00030783,2]
[359362151,1745950258387,-400.0,0.00030783,2]
[359362152,1745950258397,-154.62,0.00030783,2]
[359362153,1745950258406,-295.17601766,0.00030783,2]
[359362154,1745950258415,-6629.8,0.00030783,2]
[359362155,1745950258425,-400.0,0.00030783,2]
[359362156,1745950258435,-400.0,0.00030783,2]
[359362157,1745950258445,-2228.71,0.00030783,2]
[359362158,1745950258454,-839.34,0.00030783,2]
[359362159,1745950258464,-540.99,0.00030783,2]
[359362160,1745950258474,-624.9,0.00030783,2]
[359362161,1745950258486,-1259.11,0.00030783,2]
[359362162,1745950258496,-151.0,0.00030783,7]
[359362163,1745950258505,-400.0,0.00030783,2]
[359362164,1745950258514,-1654.28,0.00030783,2]
[359362165,1745950258525,-153.198348,0.00030783,7]
[359362166,1745950258535,-512.53,0.00030783,2]
[359362167,1745950258544,-400.0,0.00030783,2]
[359362168,1745950258554,-2401.37,0.00030783,2]
[359362169,1745950258565,-400.0,0.00030783,2]
[359362170,1745950258575,-3513.44,0.00030783,2]
[359362171,1745950258585,-745.97,0.00030783,2]
[359362172,1745950258594,-400.0,0.00030783,2]
[359362173,1745950258604,-151.0,0.00030783,7]
[359362174,1745950258615,-1636.76,0.00030783,2]
[359362175,1745950258625,-165.02284309,0.00030783,2]
[359362176,1745950258636,-401.59,0.00030783,2]
[359362177,1745950258646,-4763.75,0.00030783,2]
[359362178,1745950258657,-400.0,0.00030783,2]
[359362179,1745950258667,-811.55,0.00030783,2]
[359362180,1745950258677,-3915.94,0.00030783,2]
[359362181,1745950258686,-536.86783996,0.00030783,2]
[359362182,1745950258695,-2053.69,0.00030783,2]
[359362183,1745950258705,-1013.28,0.00030783,2]
[359362184,1745950258715,-400.0,0.00030783,2]
[359362185,1745950258725,-2439.55,0.00030783,2]
[359362186,1745950258735,-400.0,0.00030783,2]
[359362187,1745950258744,-400.0,0.00030783,2]
[359362188,1745950258754,-499.68,0.00030783,2]
[359362189,1745950258763,-400.0,0.00030783,2]
[359362190,1745950258772,-1059.59,0.00030783,2]
[359362191,1745950258782,-400.0,0.00030783,2]
[359362192,1745950258791,-9541.72,0.00030783,2]
[359362193,1745950258800,-400.0,0.00030783,2]
[359362194,1745950258809,-1166.59,0.00030783,2]
[359362195,1745950258820,-400.0,0.00030783,2]
[359362196,1745950258830,-2079.05,0.00030783,2]
[359362197,1745950258839,-400.0,0.00030783,2]
[359362198,1745950258849,-400.0,0.00030783,2]
[359362199,1745950258859,-2602.27,0.00030783,2]
[359362200,1745950258868,-707.59,0.00030783,2]
[359362201,1745950258878,-400.0,0.00030783,2]
[359362202,1745950258887,-400.0,0.00030783,2]
[359362203,1745950258897,-584.7,0.00030783,2]
[359362204,1745950258906,-785.1,0.00030783,2]
[359362205,1745950258916,-400.0,0.00030783,2]
[359362206,1745950258926,-1689.93,0.00030783,2]
[359362207,1745950258935,-1489.78,0.00030783,2]
[359362208,1745950258945,-1238.14,0.00030783,2]
[359362209,1745950258955,-618.36,0.00030783,2]
[359362210,1745950258964,-400.0,0.00030783,2]
[359362211,1745950258974,-640.33,0.00030783,2]
[359362212,1745950258983,-1310.58,0.00030783,2]
[359362213,1745950258993,-400.0,0.00030783,2]
[359362214,1745950259003,-400.0,0.00030783,2]
[359362215,1745950259012,-586.04,0.00030783,2]
[359362216,1745950259021,-400.0,0.00030783,2]
[359362217,1745950259031,-3604.88,0.00030784,2]
[359362218,1745950259040,-514.93,0.00030785,2]
[359362219,1745950259050,-627.52,0.00030785,2]
[359362220,1745950259060,-2104.16,0.00030785,2]
[359362221,1745950259070,-1287.35,0.00030785,2]
[359362222,1745950259079,-585.19,0.00030785,2]
[359362223,1745950259089,-590.39,0.00030785,2]
[359362224,1745950259098,-400.0,0.00030785,2]
[359362225,1745950259108,-4064.61,0.00030785,2]
[359362226,1745950259117,-300.0,0.00030785,2]
[359362227,1745950259127,-400.0,0.00030785,2]
[359362228,1745950259137,-1120.73,0.00030785,2]
[359362229,1745950259147,-1942.02,0.00030785,2]
[359362230,1745950259156,-400.0,0.00030785,2]
[359362231,1745950259166,-400.0,0.00030785,2]
[359362232,1745950259175,-610.09,0.00030785,2]
[359362233,1745950259184,-480.18,0.00030785,2]
[359362234,1745950259195,-1089.09,0.00030785,2]
[359362235,1745950259204,-526.98,0.00030785,2]
[359362236,1745950259214,-400.0,0.00030785,2]
[359362237,1745950259223,-400.0,0.00030785,2]
[359362238,1745950259233,-1028.38,0.00030785,2]
[359362239,1745950259242,-400.0,0.00030785,2]
[359362240,1745950259251,-1520.91,0.00030785,2]
[359362241,1745950259260,-400.0,0.00030785,2]
[359362242,1745950259270,-1053.59,0.00030785,2]
[359362243,1745950259279,-1239.71,0.00030785,2]
[359362244,1745950259289,-2205.18,0.00030785,2]
[359362245,1745950259299,-527.41,0.00030785,2]
[359362246,1745950259308,-2846.56,0.00030785,2]
[359362247,1745950259317,-2184.92,0.00030785,2]
[359362248,1745950259327,-817.29,0.00030785,2]
[359362249,1745950259336,-1394.02,0.00030785,2]
[359362250,1745950259345,-1320.77,0.00030785,2]
[359362251,1745950259354,-400.0,0.00030785,2]
[359362252,1745950259364,-1675.48,0.00030785,2]
[359362253,1745950259374,-400.0,0.00030785,2]
[359362254,1745950259383,-151.0,0.00030792,7]
[359362255,1745950259393,-151.0,0.00030792,7]
[359362256,1745950259402,-1080.97,0.00030793,2]
[359362257,1745950259411,-402.94,0.00030793,2]
[359362258,1745950259420,-432.99,0.00030793,2]
[359362259,1745950259430,-418.93,0.00030793,2]
[359362260,1745950259439,-400.0,0.00030793,2]
[359362261,1745950259448,-222.29,0.00030793,2]
[359362262,1745950259457,-400.0,0.00030793,2]
[359362263,1745950259466,-400.0,0.00030793,2]
[359362264,1745950259476,-449.6,0.00030793,2]
[359362265,1745950259487,-400.0,0.00030793,2]
[359362266,1745950259497,-159.32,0.00030793,2]
[359362267,1745950259506,-400.0,0.00030793,2]
[359362268,1745950259515,-729.14,0.00030793,2]
[359362269,1745950259526,-400.0,0.00030793,2]
[359362270,1745950259535,-400.0,0.00030793,2]
[359362271,1745950259544,-306.12,0.00030793,2]
[359362272,1745950259555,-448.35,0.00030793,2]
[359362273,1745950259565,-400.0,0.00030793,2]
[359362274,1745950259574,-400.0,0.00030793,2]
[359362275,1745950259584,-400.0,0.00030793,2]
[359362276,1745950259593,-413.51,0.00030793,2]
[359362277,1745950259603,-400.0,0.00030793,2]
[359362278,1745950259612,-1316.67,0.00030793,2]
[359362279,1745950259621,-417.74465175,0.00030793,2]
[359362280,1745950259632,-658.51,0.00030793,2]
[359362281,1745950259642,-449.83,0.00030793,2]
[359362282,1745950259651,-400.0,0.00030793,2]
[359362283,1745950259660,-413.91,0.00030817,2]
[359362284,1745950259670,-400.0,0.00031024,2]
[359362285,1745950259679,-400.0,0.00031024,2]
[359362286,1745950259688,-400.0,0.00031024,2]
[359362287,1745950259698,-400.0,0.00031025,2]
[359362288,1745950259707,-2129.67,0.00031025,2]
[359362289,1745950259717,-841.35,0.00031025,2]
[359362290,1745950259726,-597.93,0.00031025,2]
[359362291,1745950259735,-4477.77,0.00031025,2]
[359362292,1745950259744,-400.0,0.00031025,2]
[359362293,1745950259754,-400.0,0.00031025,2]
[359362294,1745950259763,-4481.88,0.00031025,2]
[359362295,1745950259772,-1016.27,0.00031025,2]
[359362296,1745950259781,-1557.18,0.00031025,2]
[359362297,1745950259792,-6821.26,0.00031025,2]
[359362298,1745950259801,-5218.28,0.00031025,2]
[359362299,1745950259811,-2301.75,0.00031025,2]
[359362300,1745950259822,-499.69,0.00031025,2]
[359362301,1745950259832,-2340.36,0.00031025,2]
[359362302,1745950259841,-400.0,0.00031025,2]
[359362303,1745950259851,-4344.48,0.00031025,2]
[359362304,1745950259861,-421.28334683,0.00031042,2]
[359362305,1745950259871,-735.44,0.00031045,2]
[359362306,1745950259880,-2027.24,0.00031045,2]
[359362307,1745950259890,-311.39194289,0.00031045,2]
[359362308,1745950259902,-400.0,0.00031045,2]
[359362309,1745950259912,-448.72,0.00031045,2]
[359362310,1745950259921,-796.85,0.00031045,2]
[359362311,1745950259931,-753.17,0.00031045,2]
[359362312,1745950259941,-2644.55,0.00031045,2]
[359362313,1745950259951,-977.43,0.00031045,2]
[359362314,1745950259961,-400.0,0.00031045,2]
[359362315,1745950259970,-2032.37,0.00031045,2]
[359362316,1745950259979,-400.0,0.00031045,2]
[359362317,1745950259989,-606.65,0.00031045,2]
[359362318,1745950259999,-2282.85,0.00031045,2]
[359362319,1745950260009,-2537.29,0.00031045,2]
[359362320,1745950260019,-502.89,0.00031045,2]
[359362321,1745950260029,-400.0,0.00031045,2]
[359362322,1745950260039,-400.0,0.00031045,2]
[359362323,1745950260049,-400.0,0.00031045,2]
[359362324,1745950260059,-665.54,0.00031045,2]
[359362325,1745950260070,-2388.42,0.00031045,2]
[359362326,1745950260080,-1859.74,0.00031045,2]
[359362327,1745950260089,-2718.43,0.00031045,2]
[359362328,1745950260099,-502.81,0.00031045,2]
[359362329,1745950260109,-400.0,0.00031057,2]
[359362330,1745950260119,-310.42038463,0.00031057,2]
[359362331,1745950260128,-400.0,0.00031057,2]
[359362332,1745950260138,-859.28,0.00031057,2]
[359362333,1745950260148,-300.0,0.00031057,2]
[359362334,1745950260157,-400.0,0.00031057,2]
[359362335,1745950260167,-510.13,0.00031057,2]
[359362336,1745950260176,-783.69,0.00031057,2]
[359362337,1745950260185,-515.96,0.00031057,2]
[359362338,1745950260195,-400.0,0.00031057,2]
[359362339,1745950260204,-836.06,0.00031057,2]
[359362340,1745950260215,-890.21,0.00031057,2]
[359362341,1745950260224,-400.0,0.00031057,2]
[359362342,1745950260233,-448.01,0.00031057,2]
[359362343,1745950260243,-469.6,0.00031057,2]
[359362344,1745950260252,-855.39,0.00031057,2]
[359362345,1745950260261,-400.0,0.00031057,2]
[359362346,1745950260271,-400.0,0.00031057,2]
[359362347,1745950260281,-537.48,0.00031057,2]
[359362348,1745950260291,-423.88,0.00031057,2]
[359362349,1745950260300,-500.96,0.00031057,2]
[359362350,1745950260310,-510.86,0.00031057,2]
[359362351,1745950260320,-400.0,0.00031057,2]
[359362352,1745950260330,-1044.99,0.00031057,2]
[359362353,1745950260339,-400.0,0.00031057,2]
[359362354,1745950260349,-400.0,0.00031057,2]
[359362355,1745950260358,-863.9,0.00031057,2]
[359362356,1745950260367,-936.0,0.00031057,2]
[359362357,1745950260377,-489.11,0.00031057,2]
[359362358,1745950260386,-928.32,0.00031057,2]
[359362359,1745950260396,-426.15,0.00031057,2]
[359362360,1745950260405,-1739.64,0.00031057,2]
[359362361,1745950260414,-1599.63,0.00031057,2]
[359362362,1745950260424,-450.72,0.00031057,2]
[359362363,1745950260433,-669.77,0.00031057,2]
[359362364,1745950260443,-400.0,0.00031057,2]
[359362365,1745950260452,-400.0,0.00031057,2]
[359362366,1745950260461,-400.0,0.00031057,2]
[359362367,1745950260470,-400.0,0.00031057,2]
[359362368,1745950260481,-1012.25,0.00031057,2]
[359362369,1745950260491,-1114.07,0.00031057,2]
[359362370,1745950260501,-400.0,0.00031057,2]
[359362371,1745950260510,-565.43,0.00031057,2]
[359362372,1745950260519,-792.61,0.00031057,2]
[359362373,1745950260530,-400.0,0.00031057,2]
[359362374,1745950260539,-400.0,0.00031057,2]
[359362375,1745950260549,-400.0,0.00031057,2]
[359362376,1745950260559,-618.32,0.00031057,2]
[359362377,1745950260569,-400.0,0.00031057,2]
[359362378,1745950260578,-400.0,0.00031057,2]
[359362379,1745950260588,-671.04,0.00031057,2]
[359362380,1745950260597,-400.0,0.00031057,2]
[359362381,1745950260606,-6629.8,0.00031057,2]
[359362382,1745950260615,-400.0,0.00031057,2]
[359362383,1745950260624,-400.0,0.00031057,2]
[359362384,1745950260633,-2228.71,0.00031057,2]
[359362385,1745950260644,-839.34,0.00031057,2]
[359362386,1745950260657,-540.99,0.00031057,2]
[359362387,1745950260666,-624.9,0.00031057,2]
[359362388,1745950260675,-1259.11,0.00031057,2]
[359362389,1745950260685,-151.0,0.00031057,7]
[359362390,1745950260694,-400.0,0.00031057,2]
[359362391,1745950260704,-1654.28,0.00031057,2]
[359362392,1745950260713,-512.53,0.00031057,2]
[359362393,1745950260722,-400.0,0.00031057,2]
[359362394,1745950260731,-2401.37,0.00031057,2]
[359362395,1745950260741,-400.0,0.00031057,2]
[359362396,1745950260750,-3513.44,0.00031057,2]
[359362397,1745950260759,-745.97,0.00031057,2]
[359362398,1745950260768,-400.0,0.00031057,2]
[359362399,1745950260778,-151.0,0.00031057,7]
[359362400,1745950260787,-1636.76,0.00031057,2]
[359362401,1745950260796,-401.59,0.00031057,2]
[359362402,1745950260806,-4763.75,0.00031057,2]
[359362403,1745950260816,-400.0,0.00031057,2]
[359362404,1745950260826,-811.55,0.00031057,2]
[359362405,1745950260836,-3915.94,0.00031057,2]
[359362406,1745950260845,-2053.69,0.00031057,2]
[359362407,1745950260855,-1013.28,0.00031057,2]
[359362408,1745950260864,-400.0,0.00031057,2]
[359362409,1745950260874,-2439.55,0.00031057,2]
[359362410,1745950260883,-400.0,0.00031057,2]
[359362411,1745950260893,-400.0,0.00031057,2]
[359362412,1745950260903,-499.68,0.00031057,2]
[359362413,1745950260913,-400.0,0.00031057,2]
[359362414,1745950260922,-1059.59,0.00031057,2]
[359362415,1745950260932,-400.0,0.00031057,2]
[359362416,1745950260941,-9541.72,0.00031057,2]
[359362417,1745950260950,-400.0,0.00031057,2]
[359362418,1745950260960,-1166.59,0.00031057,2]
[359362419,1745950260970,-400.0,0.00031057,2]
[359362420,1745950260979,-2079.05,0.00031057,2]
[359362421,1745950260989,-400.0,0.00031057,2]
[359362422,1745950260999,-400.0,0.00031057,2]
[359362423,1745950261008,-2602.27,0.00031057,2]
[359362424,1745950261018,-707.59,0.00031057,2]
[359362425,1745950261028,-400.0,0.00031057,2]
[359362426,1745950261037,-400.0,0.00031057,2]
[359362427,1745950261048,-584.7,0.00031057,2]
[359362428,1745950261057,-785.1,0.00031057,2]
[359362429,1745950261067,-400.0,0.00031057,2]
[359362430,1745950261077,-1689.93,0.00031057,2]
[359362431,1745950261086,-1489.78,0.00031057,2]
[359362432,1745950261096,-1238.14,0.00031057,2]
[359362433,1745950261105,-618.36,0.00031057,2]
[359362434,1745950261115,-400.0,0.00031057,2]
[359362435,1745950261124,-640.33,0.00031057,2]
[359362436,1745950261134,-1310.58,0.00031057,2]
[359362437,1745950261143,-400.0,0.00031057,2]
[359362438,1745950261152,-400.0,0.00031057,2]
[359362439,1745950261161,-586.04,0.00031057,2]
[359362440,1745950261170,-350.37411112,0.00031057,2]
[359362441,1745950261179,-3604.88,0.00031058,2]
[359362442,1745950261189,-514.93,0.00031059,2]
[359362443,1745950261198,-627.52,0.00031059,2]
[359362444,1745950261207,-2104.16,0.00031059,2]
[359362445,1745950261217,-1287.35,0.00031059,2]
[359362446,1745950261226,-585.19,0.00031059,2]
[359362447,1745950261235,-590.39,0.00031059,2]
[359362448,1745950261245,-277.00420566,0.00031059,2]
[359362449,1745950261254,-4064.61,0.00031059,2]
[359362450,1745950261264,-174.20516719,0.00031059,2]
[359362451,1745950261273,-1120.73,0.00031059,2]
[359362452,1745950261282,-1942.02,0.00031059,2]
[359362453,1745950261292,-400.0,0.00031059,2]
[359362454,1745950261301,-610.09,0.00031059,2]
[359362455,1745950261310,-480.18,0.00031059,2]
[359362456,1745950261319,-1089.09,0.00031059,2]
[359362457,1745950261329,-526.98,0.00031059,2]
[359362458,1745950261338,-400.0,0.00031059,2]
[359362459,1745950261348,-400.0,0.00031059,2]
[359362460,1745950261357,-1028.38,0.00031059,2]
[359362461,1745950261366,-400.0,0.00031059,2]
[359362462,1745950261375,-1520.91,0.00031059,2]
[359362463,1745950261384,-400.0,0.00031059,2]
[359362464,1745950261393,-1053.59,0.00031059,2]
[359362465,1745950261403,-1239.71,0.00031059,2]
[359362466,1745950261412,-2205.18,0.00031059,2]
[359362467,1745950261421,-527.41,0.00031059,2]
[359362468,1745950261430,-2846.56,0.00031059,2]
[359362469,1745950261439,-2184.92,0.00031059,2]
[359362470,1745950261448,-817.29,0.00031059,2]
[359362471,1745950261458,-1394.02,0.00031059,2]
[359362472,1745950261467,-1320.77,0.00031059,2]
[359362473,1745950261477,-400.0,0.00031059,2]
[359362474,1745950261491,-1675.48,0.00031059,2]
[359362475,1745950261501,-400.0,0.00031059,2]
[359362476,1745950261511,-1080.97,0.00031067,2]
[359362477,1745950261521,-402.94,0.00031067,2]
[359362478,1745950261531,-432.99,0.00031067,2]
[359362479,1745950261541,-418.93,0.00031067,2]
[359362480,1745950261553,-400.0,0.00031067,2]
[359362481,1745950261563,-400.0,0.00031067,2]
[359362482,1745950261575,-400.0,0.00031067,2]
[359362483,1745950261585,-449.6,0.00031067,2]
[359362484,1745950261596,-400.0,0.00031067,2]
[359362485,1745950261606,-400.0,0.00031067,2]
[359362486,1745950261616,-729.14,0.00031067,2]
[359362487,1745950261626,-400.0,0.00031067,2]
[359362488,1745950261636,-400.0,0.00031067,2]
[359362489,1745950261646,-448.35,0.00031067,2]
[359362490,1745950261656,-400.0,0.00031067,2]
[359362491,1745950261803,-400.0,0.00031067,2]
[359362492,1745950261812,-200.0,0.00031067,2]
[359362493,1745950261823,-413.51,0.00031067,2]
[359362494,1745950261832,-400.0,0.00031067,2]
[359362495,1745950261842,-1316.67,0.00031067,2]
[359362496,1745950261851,-658.51,0.00031067,2]
[359362497,1745950261862,-449.83,0.00031067,2]
[359362498,1745950261872,-400.0,0.00031067,2]
[359362499,1745950261881,-413.91,0.00031091,2]
[359362500,1745950261891,-1293.58563159,0.00031235,2]
[359362501,1745950261902,-400.0,0.00031298,2]
[359362502,1745950261912,-152.90982721,0.00031298,2]
[359362503,1745950261922,-472.50311289,0.00031298,2]
[359362504,1745950261931,-400.0,0.00031299,2]
[359362505,1745950261942,-2129.67,0.00031299,2]
[359362506,1745950261952,-841.35,0.00031299,2]
[359362507,1745950261961,-597.93,0.00031299,2]
[359362508,1745950261971,-4477.77,0.00031299,2]
[359362509,1745950261980,-400.0,0.00031299,2]